Cogmind - Beta 13 @@@ ROGUE MODE // 2024.06.09 @ 10:44:57 Player: ImmortalXCurse Result: Destroyed by G-34 Mercenary with Small Laser Performance ------------- Evolutions (0) 0 Regions Visited (1) 200 Robots Destroyed (17) 85 Value Destroyed (408) 408 Prototype IDs (0) 0 Alien Tech Used (0) 0 Bonus (0) 0 TOTAL SCORE: 693 Bonus ------- None Cogmind --------- Core Integrity 0/250 Matter 296/300 Energy 246/250 System Corruption 0% Temperature Cool (14) Movement Rolling (95) Ox1 Location -10/Materials Parts ------- > --- POWER (1) -------- Ion Engine > --- PROPULSION (2) --- Wheel Wheel > --- UTILITY (2) ------ Large Storage Unit Improved Terrain Scanner > --- WEAPON (2) ------- Medium Laser Light Cannon > --- INVENTORY (15) --- Ion Engine Ion Engine Aluminum Leg Wheel Heat Sink Heat Sink Medium Matter Pod (100) Seismic Detector Light Assault Rifle Mining Laser Peak State ------------ > --- POWER ------------ Ion Engine > --- PROPULSION ------- Wheel Wheel > --- UTILITY ---------- Large Storage Unit Improved Terrain Scanner > --- WEAPON ----------- Medium Laser Light Cannon > --- INVENTORY -------- Ion Engine Ion Engine Aluminum Leg Wheel Heat Sink Heat Sink Medium Matter Pod Seismic Detector Light Assault Rifle Mining Laser [Rating: 10] Favorites ----------- Power Ion Engine Engine Ion Engine Propulsion Compact Wheel Treads Light Treads Wheel Compact Wheel Utility Improved Terrain Scanner Device Improved Terrain Scanner Storage Large Storage Unit Weapon Medium Laser Energy Gun Medium Laser Ballistic Gun Light Assault Rifle Ballistic Cannon Light Cannon Build | -11 -10 ------- Run | Yrd Mat Slots Evolved . | . . Power . | . . Propulsion . | . . Utility . | . . Weapon . | . . Parts Attached 19 | 7 12 Power 5 | 1 4 Engine 5 | 1 4 Core . | . . Reactor . | . . Propulsion 6 | 2 4 Treads 2 | 1 1 Leg . | . . Wheel 4 | 1 3 Hover . | . . Flight . | . . Utility 3 | 2 1 Device 1 | 1 . Storage 2 | 1 1 Processor . | . . Hackware . | . . Protection . | . . Artifact . | . . Weapon 5 | 2 3 Energy Gun 2 | 1 1 Energy Cannon . | . . Ballistic Gun 2 | 1 1 Ballistic Cannon 1 | . 1 Launcher . | . . Special Weapon . | . . Impact Weapon . | . . Slashing Weapon . | . . Piercing Weapon . | . . Special Melee Weapon . | . . Unidentified Prototypes . | . . Parts Lost 8 | . 8 Power 2 | . 2 Propulsion 3 | . 3 Utility . | . . Weapon 3 | . 3 Highest Loss Streak 3 | . 3 To Critical Strikes . | . . Average Slot Usage (%) 94 | . 94 Engine 13 | . 13 Treads 10 | . 10 Wheel 13 | . 13 Device 14 | . 14 Storage 14 | . 14 Energy Gun 13 | . 13 Ballistic Gun 10 | . 10 Ballistic Cannon 3 | . 3 Naked Turns . | . . Heaviest Build 31 | 12 31 Greatest Support 20 | 16 20 Greatest Overweight (x) 9 | . 9 Average Overweight (x) 1 | . 1 Largest Inventory Capacity 15 | 8 15 Average Capacity 13 | 7 13 Most Carried 11 | 8 11 Average Carried 7 | 4 8 Final Capacity 15 | 8 15 Final Carried 10 | 8 10 Class Distribution -------------------- 100% | Mutant Dominant Class ---------------- Mutant | -10/Materials Resources | -11 -10 ----------- Run | Yrd Mat Matter Collected 577 | 273 304 Remotely . | . . Salvage Created 559 | 71 488 Parts 37 | 7 30 Haulers Intercepted . | . . Recyclers Shooed 1 | . 1 Parts Field Recycled . | . . Retrieved Matter . | . . Parts Self-Destructed . | . . Prevented . | . . Kills | -11 -10 ------- Run | Yrd Mat Combat Hostiles Destroyed 12 | . 12 Guns 11 | . 11 Cannons 1 | . 1 Classes Destroyed 6 | 2 4 Worker 1 | . 1 Tunneler 1 | 1 . Recycler 1 | 1 . Watcher 2 | . 2 Swarmer 3 | . 3 Grunt 9 | . 9 Best Kill Streak 2 | 2 2 Combat Bots Only 2 | . 2 Max Kills in Single Turn 1 | 1 1 Gunslinging . | . . Exploded . | . . Melee . | . . Uniques/NPCs Destroyed . | . . Combat | -11 -10 -------- Run | Yrd Mat Hostile Shots Fired 89 | . 89 Missed 15 | . 15 Damage Taken 1084 | . 1084 Core 257 | . 257 Absorbed by Shields . | . . Core Remaining (%) 100 | 100 . Volleys Fired 55 | 4 51 Largest 2 | 2 2 Hottest 85 | 70 85 Shots Fired 103 | 8 95 Gun 94 | 8 86 Cannon 9 | . 9 Launcher . | . . Special . | . . Kinetic 53 | 4 49 Thermal 50 | 4 46 Explosive . | . . Electromagnetic . | . . Robot Hit Streak 10 | 2 10 Robot Miss Streak 3 | 1 3 Penetration Max . | . . Secondary Targets . | . . Shots Hit Robots 69 | 4 65 Core Hits 30 | 3 27 Critical Kills 1 | . 1 Critical Parts Destroyed . | . . Critical Strikes 7 | 1 6 Burn 6 | 1 5 Destroy 1 | . 1 Melee Attacks . | . . Impact . | . . Slashing . | . . Piercing . | . . Sneak Attacks . | . . Combat Hostiles . | . . Follow-up Attacks . | . . Damage Inflicted 844 | 48 796 Guns 737 | 48 689 Cannons 104 | . 104 Explosions . | . . Melee . | . . Ramming 3 | . 3 Kinetic 355 | . 355 Thermal 486 | 48 438 Explosive . | . . Electromagnetic . | . . Impact . | . . Slashing . | . . Piercing . | . . Highest Corruption . | . . Average Corruption . | . . Corruption Purged . | . . Corruption Blocked . | . . Overload Shots . | . . Overflow Damage . | . . Projectiles . | . . Explosions . | . . Melee . | . . Knockbacks 1 | . 1 Impact . | . . Kinetic 1 | . 1 Secondary . | . . Self-Inflicted Damage 1 | . 1 Shots . | . . Rammed 2 | . 2 Targets Rammed 2 | . 2 Kicked . | . . Crushed . | . . Highest Temperature 178 | 70 178 Average Temperature 52 | 35 53 Received Heat Transfer 384 | . 384 Siege Activations . | . . Robots Corrupted . | . . Combat Hostiles . | . . Parts Fried . | . . Impact Corruptions . | . . Robots Melted . | . . Combat Hostiles . | . . Parts Melted 1 | . 1 Heat Transferred 1887 | 222 1665 Parts Sabotaged . | . . Parts Stolen . | . . Parts Stripped . | . . Power Chain Reactions . | . . Alert | -11 -10 ------- Run | Yrd Mat Peak Influence 303 | 10 303 Initial 6 | . 6 Average 106 | 3 115 Maximum Alert Level 1 | . 1 Low Security (%) 86 | 100 85 Level 1 13 | . 14 Level 2 . | . . Level 3 . | . . Level 4 . | . . Level 5 . | . . High Security . | . . Max Security . | . . Squads Dispatched 2 | . 2 Investigation 2 | . 2 Extermination . | . . Reinforcement . | . . Assault . | . . Garrison . | . . Intercept . | . . Searches Triggered . | . . Construction Impeded . | . . Haulers Reinforced . | . . Active Scanning Responses . | . . Cargo Convoy Interrupts . | . . Stealth | -11 -10 --------- Run | Yrd Mat Distress Signals 1 | . 1 Communications Jammed . | . . Distress Signals . | . . Times Spotted 24 | . 24 Peak Tracking Total 4 | . 4 Tactical Retreats 3 | . 3 Traps | -11 -10 ------- Run | Yrd Mat Traps Triggered 3 | . 3 Indirectly . | . . Trap Hack Attempts . | . . Triggered . | . . Disarmed . | . . Reprogrammed . | . . Reused . | . . Traps Extracted . | . . Installed . | . . Triggered . | . . Machines | -11 -10 ---------- Run | Yrd Mat Machines Disabled . | . . Max in Single Turn . | . . Machines Repaired . | . . Machines Dismantled . | . . Machines Sabotaged . | . . Overloaded Fab Kills . | . . Hacking | -11 -10 --------- Run | Yrd Mat Machines Accessed 5 | . 5 Terminals 4 | . 4 Fabricators . | . . Repair Stations 1 | . 1 Recycling Units . | . . Scanalyzers . | . . Garrison Access . | . . Total Hacks 16 | . 16 Successful 11 | . 11 Failed 5 | . 5 Catastrophic . | . . Database Lockouts . | . . Manual 13 | . 13 Terminals 15 | . 15 Fabricators . | . . Repair Stations 1 | . 1 Recycling Units . | . . Scanalyzers . | . . Garrison Access . | . . Terminal Hacks 3 | . 3 Emergency Access Points 1 | . 1 Terminal Index 1 | . 1 Investigation Status 1 | . 1 Fabricator Hacks . | . . Repair Station Hacks 1 | . 1 Scan Component 1 | . 1 Recycling Unit Hacks . | . . Scanalyzer . | . . Garrison Access Hacks . | . . Unauthorized Hacks 7 | . 7 Terminals 7 | . 7 Assimilate 2 | . 2 Botnet 4 | . 4 Operators 1 | . 1 Fabricators . | . . Repair Stations . | . . Recycling Units . | . . Scanalyzers . | . . Garrison Access . | . . Data Cores Recovered . | . . Used . | . . Hacking Detections 4 | . 4 Full Trace Events 4 | . 4 Feedback Events . | . . Feedback Blocked . | . . Robot Schematics Acquired . | . . Robots Built . | . . Authchips . | . . Time . | . . Total Robot Build Rating . | . . Part Schematics Acquired . | . . Parts Built . | . . Authchips . | . . Time . | . . Total Part Build Rating . | . . Parts Repaired . | . . Time . | . . Parts Recycled . | . . Recycled Matter . | . . Retrieved Matter . | . . Retrieved Components . | . . Parts Scanalyzed . | . . Part Schematics Acquired . | . . Parts Damaged . | . . Bothacking | -11 -10 ------------ Run | Yrd Mat Used RIF Installer . | . . Robots Hacked . | . . Non-combat . | . . Combat . | . . Robot Hacks Applied . | . . Relay Couplers Released . | . . Fabnet Peak Effective % . | . . Robots Rewired . | . . Allies Hacked . | . . Hacks Repelled . | . . Allies | -11 -10 -------- Run | Yrd Mat Total Allies 1 | . 1 Largest Group 1 | . 1 Highest-Rated Group 10 | . 10 Highest-Rated Ally 10 | . 10 Total Orders . | . . Ally Attacks . | . . Total Damage . | . . Kills . | . . Allies Corrupted . | . . Allies Melted . | . . Intel | -11 -10 ------- Run | Yrd Mat Robot Analysis Total . | . . Derelict Logs Recovered . | . . Drone Launches . | . . Drone Recoveries . | . . Exploration | -11 -10 ------------- Run | Yrd Mat Turns Passed 1149 | 93 1056 Spaces Moved 647 | 65 582 Core 23 | 4 19 Treads 72 | . 72 Legs . | . . Wheels 552 | 61 491 Hover . | . . Flight . | . . Fastest Speed 50 | 50 95 Average Speed 135 | 96 140 Slowest Speed 500 | 100 500 Overloaded Moves . | . . Propulsion Burnouts . | . . Robots Hopped . | . . Cave-ins Triggered . | . . Exploration Rate (%) 30 | 3 57 Regions Visited 1 Branch Regions . Pre-discovered Areas . | . . Known Exits Taken . | . . Unknown Exits Taken 1 | 1 . Scrap Searched . | . . Spaces Dug . | . . Terrain Destroyed . | . . Melee . | . . Projectile . | . . AOE . | . . Terrain Rammed . | . . Walls Destroyed . | . . Machines Disabled . | . . Actions | -11 -10 --------- Run | Yrd Mat Total 817 | 85 732 Wait 64 | . 64 Move 646 | 64 582 Hop . | . . Pick Up 23 | 10 13 Fast Attach 6 | 5 1 Attach 10 | 2 8 Detach 1 | . 1 Swap 3 | . 3 Drop 7 | . 7 Fire 55 | 4 51 Melee . | . . Ram 1 | . 1 Kick . | . . Crush 1 | . 1 Escape Stasis . | . . Rewire . | . . Trap . | . . Miscellaneous . | . . Route ------- -11/Scrapyard -10/Materials (discovered 3 exits: [*Mat x2] / [*Min]) History --------- Turn | Location | Event 7 | -11/Scrapyard | Discovered new exit (range 15) 94 | -11/Scrapyard | Entered Materials 316 | -10/Materials | Build established: Mutant 506 | -10/Materials | Discovered new exit (range 4) 687 | -10/Materials | Core integrity fell below 50% 721 | -10/Materials | Lost 3 parts (1p1n1w) 880 | -10/Materials | Discovered new exit (range 13) 909 | -10/Materials | Core integrity fell below 20% 939 | -10/Materials | Lost 3 parts (1p1n1w) 958 | -10/Materials | Discovered new exit (range 10) 1150 | -10/Materials | Destroyed by G-34 Mercenary with Small Laser Last Messages --------------- 01063_ K-01 Serf collects debris. 01066_ U-05 Engineer lays Concrete. 01066_ K-01 Serf collects debris. 01067_ U-05 Engineer lays Concrete. 01069_ K-01 Serf collects debris. 01070_ U-05 Engineer lays Concrete. 01084_ K-01 Serf collects debris. 01085_ Acquired Aluminum Leg. 01085_ U-05 Engineer lays Concrete. 01088_ Acquired 44 matter. 01089_ U-05 Engineer lays Concrete. 01090_ Acquired 13 matter. 01093_ K-01 Serf cleans the Terminal. 01097_ K-01 Serf suffers critical hit (Burn). 01100_ K-01 Serf destroyed. 01104_ Acquired Wheel. 01109_ Acquired 15 matter. 01115_ Acquired 40 matter. 01117_ Acquired 34 matter. 01133_ U-05 Engineer lays Concrete. Map ----- +----------------------------------------------------+ | ??# ## ##??#??#?##?##! | | ?## # ###########?############# ## | | ?# # #??#????#?????# #? | | ?# + #???#?######### ## | | ### # #?##??# ## #? | | # # # #?????# """ ## ## | | # # ###+########??#?# """ ## ## | | # ### ###?#?##?#?## """ ## | | ## ############ ## | | # + ## ## ## | | # #### % "" ######+## # | | # #?## =%T" # # | | ## #?## % ""%# | | ?# #### +% # | | ?## """ + # ##### # | | #?# """ ########### % ###?####### | | ?##^ """ ###?????#?# #????#???? | | ?## #?#?#??#### ?????? | | ?## ##???? #### ????? | | ?#T """ ### ## ? ??? | | ?## """ #?# #?? ? #### ##### ? | | ??# ^""" #?# #?? ? ##?###+###???#? ## | | #?# = ### ## ? #????? ?????"? # | | ?## ^ ### #??? #???""?? ???"??????# | | ?#T """ ###/### #??????? ??????????# | | ?## """ # @# #????T???? ?????? ?? | | ??#%^""" #!! g #???"??? ??????????? | | ??# % #!! #a #?? "??????????????? | | ??# #!! # #?????? ???????????? | | ??# #######? #??????????????????? | | ??# ?????? #??????????????????? | | ??### < ?????? #??????????????????? | | ????? ??????? #??????????????????? | | ????? ###????????#??????????????????? | | ????? #???#?????????????????????????? | | ????? #?????????????????? ??????????? | | ????? ##????????????????????????????? | | ????? #?????????????????????????????? | | ????? ??????????????????????????????? | | ??????? ?????????????????????????????????? | | ?????????????????????????????????????????? | | ?????????????????????????????????????????? | | ?????????????????????????????????????????? | | ?????????????????????????????????????????? | | ?????????????????????????????????????????? | | ??????????+??????????????????????????????? | | ?????????????????????????????????????????? | | ?????????????????????????????????????????? | | ?????????????????????????????????????????? | | ?????????????????????????????????????????? | +----------------------------------------------------+ Best States ------------- Heat Dissipation 25 Energy Generation 10 Energy Capacity 250 Matter Stores 300 Matter Capacity 300 Sight Range 16 Terrain Scan Range 16 Terrain Scan Density 10 Evasion (%) 41 Recoil Reduction 1 Item Schematics ----------------- None Robot Schematics ------------------ None Fabricated ------------ Nothing Alien Tech Used ----------------- None Achievements -------------- Quantum Hacking Challenges ------------ None Game ------ Seed ChargeCompactBeamcaster Manual? 0 Play Time 00:16:36 Cumulative 7.0 hours Start 2024.06.09 @ 10:28:14 End 2024.06.09 @ 10:44:57 Sessions 1 Manual Loads 0 Difficulty Rogue Special Mode None Game No. 8 Rogue 8 Adventurer 0 Explorer 0 Win Type - Total 0 Types 0/0/0/0/0/0/0/0/0 Lore% 12 Gallery% 15 Achievement% 15 Wizard Run 0 Options --------- Layout 2 ASCII 0 Keyboard 1 Movement Vi Keybinds 0 Fullscreen 2 Font 48/Smallcaps Map View 50x44 Zoom Use 0% Tactical HUD 1 Map Filters NONE Filters NONE Steam 1 RUN: 2af36922-1cc1-4791-857b-44b7e127fb1f